{"text_format":"1","workbook":"xlsx","n_sheets":3,"sheets":["Kontrolna tabla","Lista opreme","Izvedeni podaci"],"not_rendered":{"charts":0,"images":0,"macros":1,"external_links":0,"defined_names":13,"comments":0,"pivot_tables":1},"unopened":[],"bounds":{"document_bytes":16777216,"sheet_cells":100000,"rows_first":2000,"rows_last":500,"rows_between":2000,"halvings":0,"cell_chars":16384,"cell_head_chars":4096},"cells_cut":0,"cells_raw":0,"read":"whole","date_system":"1900"}

{"sheet":"Kontrolna tabla","index":0,"n_rows":20,"n_cols":6,"rows_kept":20,"cut":false,"hidden":false,"merged":[]}
[null,"Kontrolna tabla"]
[]
[]
[null,null,null,null,null,"Ukupan broj"]
[null,null,null,null,null,{"$f":"GETPIVOTDATA(\"Broj\",'Izvedeni podaci'!$B$11)","v":3}]
[]
[null,null,null,null,null,"Ukupan mesečni trošak"]
[null,null,null,null,null,{"$f":"GETPIVOTDATA(\"Ukupan mesečni trošak\",'Izvedeni podaci'!$B$11)","v":1765.5943035068672}]
[]
[null,null,null,null,null,"Operativni troškovi"]
[null,null,null,null,null,{"$f":"GETPIVOTDATA(\"Operativni troškovi\",'Izvedeni podaci'!$B$11)","v":605}]
[]
[null,null,null,null,null,"Mesečna amortizacija"]
[null,null,null,null,null,{"$f":"GETPIVOTDATA(\"Ukupan mesečni trošak\",'Izvedeni podaci'!$B$11)","v":1765.5943035068672}]
[]
[null,null,null,null,null,"Iznos rate"]
[null,null,null,null,null,{"$f":"GETPIVOTDATA(\"Iznos rate\",'Izvedeni podaci'!$B$11)","v":1160.5943035068672}]
[]
[null,null,null,null,null,"Trenutna vrednost"]
[null,null,null,null,null,{"$f":"GETPIVOTDATA(\"Trenutna vrednost \",'Izvedeni podaci'!$B$11)","v":36534.931506849316}]

{"sheet":"Lista opreme","index":1,"n_rows":9,"n_cols":20,"rows_kept":9,"cut":false,"hidden":false,"merged":[]}
[null,"Lista opreme"]
[]
[null,null,null,"Markiraj kad je broj preostalih mesečnih rata manji od: ",20]
[]
[null,"Imovina ili\nserijski broj","Opis stavke\n(proizvodnja i model)","Lokacija","Stanje","Prodavac","Preostali broj\ngodina servisiranja","Početna vrednost","Učešće","Datum kupovine\nili najma","Period kredita\n(u godinama)","Rata kredita","Mesečni\noperativni troškovi","Očekivana vrednost po isteku ugovora","Preostali broj\nmesečnih rata","Mesečna rata","Ukupan\nmesečni trošak","Godišnja amortizacija\n(pravolinijska)","Mesečna amortizacija (pravolinijska)","Trenutna vrednost"]
[null,123,"Model proizvodnje 1","Glavna grana","Dobro","Lokalno",5,30000,5000,"2011-01-15",4,0.1,200,20000,{"$f":"IFERROR(SUMPRODUCT(--(DAY(ROW(OFFSET($A$1,,,DATE(YEAR(OPREMA[[#This Row],[Datum kupovine\nili najma]])+OPREMA[[#This Row],[Period kredita\n(u godinama)]],MONTH(OPREMA[[#This Row],[Datum kupovine\nili najma]])-1,DAY(OPREMA[[#This Row],[Datum kupovine\nili najma]]))-TODAY()))+DATE(YEAR(OPREMA[[#This Row],[Datum kupovine\nili najma]])+OPREMA[[#This Row],[Period kredita\n(u godinama)]],MONTH(OPREMA[[#This Row],[Datum kupovine\nili najma]]),DAY(OPREMA[[#This Row],[Datum kupovine\nili najma]]))-1)=DAY(OPREMA[[#This Row],[Datum kupovine\nili najma]]))),0)","v":24},{"$f":"IFERROR(-(OPREMA[Početna vrednost]>0)*(OPREMA[Početna vrednost]<>OPREMA[Učešće])*PMT(OPREMA[Rata kredita]/MonthsInYear,OPREMA[Period kredita\n(u godinama)]*MonthsInYear,OPREMA[Početna vrednost]-OPREMA[Učešće]),0)","v":634.06458586867973},{"$f":"OPREMA[[#This Row],[Mesečna rata]]+OPREMA[Mesečni\noperativni troškovi]","v":834.06458586867973},{"$f":"IFERROR((OPREMA[Početna vrednost]>0)*SLN(OPREMA[Početna vrednost],OPREMA[Očekivana vrednost po isteku ugovora],OPREMA[Period kredita\n(u godinama)]),0)","v":2500},{"$f":"IFERROR(OPREMA[Godišnja amortizacija\n(pravolinijska)]/MonthsInYear,0)","v":208.33333333333334},{"$f":"IFERROR(OPREMA[Početna vrednost]-(OPREMA[Godišnja amortizacija\n(pravolinijska)]*((TODAY()-OPREMA[Datum kupovine\nili najma])/DaysInYear)),0)","v":25034.246575342466}]
[null,234,"Model proizvodnje 2","Glavna grana","Dobro","Lokalno",4,12500,1500,"2011-03-10",3,7.7499999999999999E-2,120,3000,{"$f":"IFERROR(SUMPRODUCT(--(DAY(ROW(OFFSET($A$1,,,DATE(YEAR(OPREMA[[#This Row],[Datum kupovine\nili najma]])+OPREMA[[#This Row],[Period kredita\n(u godinama)]],MONTH(OPREMA[[#This Row],[Datum kupovine\nili najma]])-1,DAY(OPREMA[[#This Row],[Datum kupovine\nili najma]]))-TODAY()))+DATE(YEAR(OPREMA[[#This Row],[Datum kupovine\nili najma]])+OPREMA[[#This Row],[Period kredita\n(u godinama)]],MONTH(OPREMA[[#This Row],[Datum kupovine\nili najma]]),DAY(OPREMA[[#This Row],[Datum kupovine\nili najma]]))-1)=DAY(OPREMA[[#This Row],[Datum kupovine\nili najma]]))),0)","v":14},{"$f":"IFERROR(-(OPREMA[Početna vrednost]>0)*(OPREMA[Početna vrednost]<>OPREMA[Učešće])*PMT(OPREMA[Rata kredita]/MonthsInYear,OPREMA[Period kredita\n(u godinama)]*MonthsInYear,OPREMA[Početna vrednost]-OPREMA[Učešće]),0)","v":343.43280007691891},{"$f":"OPREMA[[#This Row],[Mesečna rata]]+OPREMA[Mesečni\noperativni troškovi]","v":463.43280007691891},{"$f":"IFERROR((OPREMA[Početna vrednost]>0)*SLN(OPREMA[Početna vrednost],OPREMA[Očekivana vrednost po isteku ugovora],OPREMA[Period kredita\n(u godinama)]),0)","v":3166.6666666666665},{"$f":"IFERROR(OPREMA[Godišnja amortizacija\n(pravolinijska)]/MonthsInYear,0)","v":263.88888888888886},{"$f":"IFERROR(OPREMA[Početna vrednost]-(OPREMA[Godišnja amortizacija\n(pravolinijska)]*((TODAY()-OPREMA[Datum kupovine\nili najma])/DaysInYear)),0)","v":6678.5388127853885}]
[null,345,"Model proizvodnje 2","Grana 1","Osrednje","Drugo",1,10000,2500,"2010-09-15",4,0.08,285,1000,{"$f":"IFERROR(SUMPRODUCT(--(DAY(ROW(OFFSET($A$1,,,DATE(YEAR(OPREMA[[#This Row],[Datum kupovine\nili najma]])+OPREMA[[#This Row],[Period kredita\n(u godinama)]],MONTH(OPREMA[[#This Row],[Datum kupovine\nili najma]])-1,DAY(OPREMA[[#This Row],[Datum kupovine\nili najma]]))-TODAY()))+DATE(YEAR(OPREMA[[#This Row],[Datum kupovine\nili najma]])+OPREMA[[#This Row],[Period kredita\n(u godinama)]],MONTH(OPREMA[[#This Row],[Datum kupovine\nili najma]]),DAY(OPREMA[[#This Row],[Datum kupovine\nili najma]]))-1)=DAY(OPREMA[[#This Row],[Datum kupovine\nili najma]]))),0)","v":20},{"$f":"IFERROR(-(OPREMA[Početna vrednost]>0)*(OPREMA[Početna vrednost]<>OPREMA[Učešće])*PMT(OPREMA[Rata kredita]/MonthsInYear,OPREMA[Period kredita\n(u godinama)]*MonthsInYear,OPREMA[Početna vrednost]-OPREMA[Učešće]),0)","v":183.09691756126861},{"$f":"OPREMA[[#This Row],[Mesečna rata]]+OPREMA[Mesečni\noperativni troškovi]","v":468.09691756126858},{"$f":"IFERROR((OPREMA[Početna vrednost]>0)*SLN(OPREMA[Početna vrednost],OPREMA[Očekivana vrednost po isteku ugovora],OPREMA[Period kredita\n(u godinama)]),0)","v":2250},{"$f":"IFERROR(OPREMA[Godišnja amortizacija\n(pravolinijska)]/MonthsInYear,0)","v":187.5},{"$f":"IFERROR(OPREMA[Početna vrednost]-(OPREMA[Godišnja amortizacija\n(pravolinijska)]*((TODAY()-OPREMA[Datum kupovine\nili najma])/DaysInYear)),0)","v":4778.767123287671}]
[null,"Ukupno",null,null,null,null,{"$f":"SUBTOTAL(101,OPREMA[Preostali broj\ngodina servisiranja])","v":3.3333333333333335},{"$f":"SUBTOTAL(109,OPREMA[Početna vrednost])","v":52500},{"$f":"SUBTOTAL(109,OPREMA[Učešće])","v":9000},null,{"$f":"SUBTOTAL(101,OPREMA[Period kredita\n(u godinama)])","v":3.6666666666666665},{"$f":"SUBTOTAL(101,OPREMA[Rata kredita])","v":8.5833333333333331E-2},{"$f":"SUBTOTAL(109,OPREMA[Mesečni\noperativni troškovi])","v":605},{"$f":"SUBTOTAL(109,OPREMA[Očekivana vrednost po isteku ugovora])","v":24000},{"$f":"SUBTOTAL(101,OPREMA[Preostali broj\nmesečnih rata])","v":19.333333333333332},{"$f":"SUBTOTAL(109,OPREMA[Mesečna rata])","v":1160.5943035068672},{"$f":"SUBTOTAL(109,OPREMA[Ukupan\nmesečni trošak])","v":1765.5943035068672},{"$f":"SUBTOTAL(101,OPREMA[Godišnja amortizacija\n(pravolinijska)])","v":2638.8888888888887},{"$f":"SUBTOTAL(101,OPREMA[Mesečna amortizacija (pravolinijska)])","v":219.90740740740739},{"$f":"SUBTOTAL(109,OPREMA[Trenutna vrednost])","v":36491.552511415524}]

{"sheet":"Izvedeni podaci","index":2,"n_rows":15,"n_cols":8,"rows_kept":15,"cut":false,"hidden":true,"merged":[]}
[null,"Izvedeni podaci"]
[null,"Ovaj list bi trebalo da ostane skriven. Promena strukture izvedene tabele na ovom listu može da dovede do grešaka u modulima za isecanje na kontrolnoj tabli."]
[]
[null,"Opis stavke\n(proizvodnja i model)","(Sve)"]
[null,"Lokacija","(Sve)"]
[null,"Stanje","(Sve)"]
[null,"Prodavac","(Sve)"]
[null,"Period kredita\n(u godinama)","(Sve)"]
[null,"Preostali broj\ngodina servisiranja","(Sve)"]
[]
[null,"Oznake redova","Broj","Operativni troškovi","Iznos rate","Ukupan mesečni trošak","Mesečna amortizacija","Trenutna vrednost "]
[null,123,1,200,634.06458586867973,834.06458586867973,208.33333333333334,25047.945205479453]
[null,234,1,120,343.43280007691891,463.43280007691891,263.88888888888886,6695.8904109589048]
[null,345,1,285,183.09691756126861,468.09691756126858,187.5,4791.0958904109593]
[null,"Konačni zbir",3,605,1160.5943035068672,1765.5943035068672,659.72222222222217,36534.931506849316]